fUSD/lending_fUSD_20250320
["ID","MTS","AMOUNT","RATE_DAILY","PERIOD"]
[356416464,1742429444689,-151.0,0.00027832,7]
[356416465,1742429444700,-153.045339,0.00027832,7]
[356416466,1742429444710,-500.0,0.00027832,2]
[356416467,1742429444721,-171.547395,0.00027832,7]
[356416468,1742429444731,-500.0,0.00027832,2]
[356416469,1742429444741,-821.73,0.00027832,2]
[356416470,1742429444752,-500.0,0.00027832,2]
[356416471,1742429444763,-151.0,0.00027832,7]
[356416472,1742429444773,-689.0,0.00027832,2]
[356416473,1742429444784,-504.31,0.00027832,2]
[356416474,1742429444794,-218.64597198,0.00027832,2]
[356416475,1742429444804,-151.0,0.00027832,7]
[356416476,1742429444815,-151.0,0.00027832,7]
[356416477,1742429444825,-500.0,0.00027832,2]
[356416478,1742429444835,-500.0,0.00027832,2]
[356416479,1742429444845,-151.0,0.00027832,7]
[356416480,1742429444855,-153.300914,0.00027832,7]
[356416481,1742429444865,-151.0,0.00027832,7]
[356416482,1742429444876,-151.0,0.00027832,7]
[356416483,1742429444886,-151.0,0.00027832,7]
[356416484,1742429444896,-151.0,0.00027832,7]
[356416485,1742429444912,-705.65,0.00027832,2]
[356416486,1742429444923,-500.0,0.00027832,2]
[356416487,1742429444934,-671.1,0.00027832,2]
[356416488,1742429444944,-528.80502564,0.00027832,2]
[356416489,1742429444956,-718.58,0.00027832,2]
[356416490,1742429444966,-967.94,0.00027832,2]
[356416491,1742429444976,-151.0,0.00027832,7]
[356416492,1742429444988,-151.0,0.00027832,7]
[356416493,1742429444999,-151.0,0.00027832,7]
[356416494,1742429445009,-151.0,0.00027832,7]
[356416495,1742429445019,-1003.48,0.00027832,2]
[356416496,1742429445030,-151.0,0.00027832,7]
[356416497,1742429445040,-157.921274,0.00027832,7]
[356416498,1742429445051,-153.162332,0.00027832,7]
[356416499,1742429445062,-704.74,0.00027832,2]
[356416500,1742429445074,-151.0,0.00027832,7]
[356416501,1742429445084,-593.26,0.00027832,2]
[356416502,1742429445095,-152.357257,0.00027832,7]
[356416503,1742429445108,-654.32,0.00027832,2]
[356416504,1742429445120,-234.563473,0.00027832,7]
[356416505,1742429445133,-234.563473,0.00027832,7]
[356416506,1742429445144,-500.0,0.00027832,2]
[356416507,1742429445155,-234.563473,0.00027832,7]
[356416508,1742429445166,-234.563473,0.00027832,7]
[356416509,1742429445176,-151.953114,0.00027832,7]
[356416510,1742429445186,-804.27,0.00027832,2]
[356416511,1742429445196,-151.0,0.00027832,7]
[356416512,1742429445206,-151.0,0.00027832,7]
[356416513,1742429445216,-151.0,0.00027832,7]
[356416514,1742429445226,-151.0,0.00027832,7]
[356416515,1742429445237,-548.11317025,0.00027832,2]
[356416516,1742429445247,-500.0,0.00027832,2]
[356416517,1742429445257,-500.0,0.00027832,2]
[356416518,1742429445268,-1023.44,0.00027832,2]
[356416519,1742429445278,-500.0,0.00027832,2]
[356416520,1742429445288,-500.0,0.00027832,2]
[356416521,1742429445298,-500.0,0.00027832,2]
[356416522,1742429445310,-960.11,0.00027832,2]
[356416523,1742429445323,-500.0,0.00027832,2]
[356416524,1742429445534,-160.020009,0.00027832,7]
[356416525,1742429445543,-160.020009,0.00027832,7]
[356416526,1742429445552,-500.0,0.00027832,2]
[356416527,1742429445562,-231.87914,0.00027832,7]
[356416528,1742429445572,-160.020009,0.00027832,7]
[356416529,1742429445582,-160.020009,0.00027832,7]
[356416530,1742429445591,-500.0,0.00027832,2]
[356416531,1742429445604,-687.49,0.00027832,2]
[356416532,1742429445613,-151.0,0.00027832,7]
[356416533,1742429445623,-151.0,0.00027832,7]
[356416534,1742429445634,-679.13,0.00027832,2]
[356416535,1742429445644,-558.11,0.00027832,2]
[356416536,1742429445653,-500.0,0.00027832,2]
[356416537,1742429445663,-151.0,0.00027832,7]
[356416538,1742429445673,-500.0,0.00027832,2]
[356416539,1742429445683,-151.0,0.00027832,7]
[356416540,1742429445693,-151.0,0.00027832,7]
[356416541,1742429445703,-151.0,0.00027832,7]
[356416542,1742429445713,-151.0,0.00027832,7]
[356416543,1742429445723,-151.0,0.00027832,7]
[356416544,1742429445733,-500.0,0.00027832,2]
[356416545,1742429445744,-500.0,0.00027832,2]
[356416546,1742429445753,-780.8,0.00027832,2]
[356416547,1742429445763,-520.77,0.00027832,2]
[356416548,1742429445773,-500.0,0.00027832,2]
[356416549,1742429445783,-500.0,0.00027832,2]
[356416550,1742429445793,-151.0,0.00027832,7]
[356416551,1742429445803,-151.0,0.00027832,7]
[356416552,1742429445813,-500.0,0.00027832,2]
[356416553,1742429445823,-500.0,0.00027832,2]
[356416554,1742429445833,-1182.16,0.00027832,2]
[356416555,1742429445843,-151.0,0.00027832,7]
[356416556,1742429445854,-192.056999,0.00027832,7]
[356416557,1742429445865,-500.0,0.00027832,2]
[356416558,1742429445875,-719.97,0.00027832,2]
[356416559,1742429445885,-634.28,0.00027832,2]
[356416560,1742429445894,-829.65,0.00027832,2]
[356416561,1742429445906,-1247.21,0.00027832,2]
[356416562,1742429445920,-346.15,0.00027832,2]
[356416563,1742429445930,-500.0,0.00027832,2]
[356416564,1742429445939,-283.950924,0.00027832,7]
[356416565,1742429445950,-1262.48,0.00027832,2]
[356416566,1742429445959,-164.170015,0.00027832,7]
[356416567,1742429445968,-164.170015,0.00027832,7]
[356416568,1742429445978,-588.29,0.00027832,2]
[356416569,1742429445988,-164.170015,0.00027832,7]
[356416570,1742429445997,-164.170015,0.00027832,7]
[356416571,1742429446007,-543.3,0.00027832,2]
[356416572,1742429446017,-524.64,0.00027832,2]
[356416573,1742429446027,-864.56,0.00027832,2]
[356416574,1742429446037,-616.22,0.00027832,2]
[356416575,1742429446047,-2232.13,0.00027832,2]
[356416576,1742429446057,-204.20737,0.00027832,7]
[356416577,1742429446067,-500.0,0.00027832,2]
[356416578,1742429446080,-151.0,0.00027832,7]
[356416579,1742429446090,-151.0,0.00027832,7]
[356416580,1742429446100,-151.0,0.00027832,7]
[356416581,1742429446111,-151.0,0.00027832,7]
[356416583,1742429446120,-636.25,0.00027832,2]
[356416584,1742429446130,-151.0,0.00027832,7]
[356416587,1742429446141,-151.0,0.00027832,7]
[356416588,1742429446151,-1525.13,0.00027832,2]
[356416589,1742429446161,-151.0,0.00027832,7]
[356416590,1742429446171,-500.0,0.00027832,2]
[356416592,1742429446182,-288.404313,0.00027832,7]
[356416593,1742429446193,-666.83,0.00027832,2]
[356416594,1742429446203,-500.0,0.00027832,120]
[356416595,1742429446212,-151.0,0.00027832,7]
[356416596,1742429446222,-562.89,0.00027832,2]
[356416597,1742429446232,-500.0,0.00027832,2]
[356416598,1742429446242,-151.0,0.00027832,7]
[356416599,1742429446251,-500.0,0.00027832,2]
[356416600,1742429446261,-500.0,0.00027832,2]
[356416601,1742429446271,-151.0,0.00027832,7]
[356416602,1742429446280,-707.04,0.00027832,2]
[356416603,1742429446290,-151.0,0.00027832,7]
[356416604,1742429446300,-522.42,0.00027832,2]
[356416605,1742429446310,-151.0,0.00027832,7]
[356416606,1742429446322,-803.73,0.00027832,2]
[356416607,1742429446332,-955.203588,0.00027832,7]
[356416608,1742429446342,-955.203588,0.00027832,7]
[356416609,1742429446352,-500.0,0.00027832,2]
[356416610,1742429446362,-298.86521281,0.00027832,2]
[356416611,1742429446371,-500.0,0.00027832,2]
[356416612,1742429446381,-500.0,0.00027832,2]
[356416613,1742429446391,-151.0,0.00027832,7]
[356416614,1742429446400,-500.0,0.00027832,2]
[356416615,1742429446410,-500.0,0.00027832,2]
[356416616,1742429446423,-500.0,0.00027832,2]
[356416617,1742429446439,-1060.63,0.00027832,2]
[356416618,1742429446456,-151.0,0.00027832,7]
[356416619,1742429446471,-500.0,0.00027832,2]
[356416620,1742429446480,-500.0,0.00027832,2]
[356416621,1742429446491,-500.0,0.00027832,2]
[356416622,1742429446505,-836.52,0.00027832,2]
[356416623,1742429446515,-2498.054742,0.00027832,7]
[356416624,1742429446525,-2498.054742,0.00027832,7]
[356416625,1742429446534,-2498.054742,0.00027832,7]
[356416626,1742429446544,-2498.054742,0.00027832,7]
[356416627,1742429446554,-173.49923,0.00027832,7]
[356416628,1742429446566,-173.49923,0.00027832,7]
[356416629,1742429446576,-500.0,0.00027832,2]
[356416630,1742429446586,-173.49923,0.00027832,7]
[356416631,1742429446596,-173.49923,0.00027832,7]
[356416632,1742429446606,-1287.31,0.00027832,2]
[356416633,1742429446616,-500.0,0.00027832,2]
[356416634,1742429446629,-889.47,0.00027832,2]
[356416635,1742429446639,-9681.55386015,0.00027853,2]
[356416636,1742429446649,-13389.5526011,0.00027853,2]
[356416637,1742429446659,-38726.2154406,0.00027854,2]
[356416638,1742429446668,-40168.6578032,0.00027854,2]
[356416639,1742429446678,-2498.054742,0.00027854,7]
[356416640,1742429446688,-2498.054742,0.00027854,7]
[356416641,1742429446698,-173.49923,0.00027854,7]
[356416642,1742429446707,-173.49923,0.00027854,7]
[356416643,1742429446717,-9681.55386015,0.00027854,2]
[356416644,1742429446727,-13389.5526011,0.00027854,2]
[356416645,1742429446737,-2498.054742,0.00027862,7]
[356416646,1742429446747,-2498.054736,0.00027862,7]
[356416647,1742429446756,-173.49923,0.00027862,7]
[356416648,1742429446766,-173.499238,0.00027862,7]
[356416649,1742429446776,-19363.1077203,0.00027863,2]
[356416650,1742429446785,-93726.8682075,0.00027863,2]
[356416651,1742429446795,-27514.95213121,0.00027863,2]
[356416652,1742429446810,-39432.81087419,0.00027863,2]
[356416653,1742429446820,-151.0,0.00027863,7]
[356416654,1742429446829,-151.0,0.00027863,7]
[356416655,1742429446839,-151.0,0.00027863,7]
[356416656,1742429446849,-151.0,0.00027863,7]
[356416657,1742429446860,-251.053851,0.00027863,7]
[356416658,1742429446869,-151.0,0.00027863,7]
[356416659,1742429446879,-955.203588,0.00027863,7]
[356416660,1742429446889,-955.203588,0.00027863,7]
[356416661,1742429446899,-151.0,0.00027863,7]
[356416662,1742429446910,-151.0,0.00027863,7]
[356416663,1742429446921,-66434.77153566,0.00027864,2]
[356416664,1742429446961,-512.99146974,0.00027864,2]
[356416665,1742429446971,-151.0,0.00027864,7]
[356416666,1742429446980,-206.943136,0.00027864,7]
[356416667,1742429446990,-157.818794,0.00027864,7]
[356416668,1742429447000,-151.0,0.00027864,7]
[356416669,1742429447009,-151.0,0.00027864,7]
[356416670,1742429447018,-234.563473,0.00027864,7]
[356416671,1742429447028,-234.563473,0.00027864,7]
[356416672,1742429447038,-152.325221,0.00027864,7]
[356416673,1742429447047,-157.817053,0.00027864,7]
[356416674,1742429447058,-160.020009,0.00027864,7]
[356416675,1742429447067,-160.020009,0.00027864,7]
[356416676,1742429447077,-151.0,0.00027864,7]
[356416677,1742429447086,-151.0,0.00027864,7]
[356416678,1742429447095,-151.0,0.00027864,7]
[356416679,1742429447106,-151.0,0.00027864,7]
[356416680,1742429447115,-151.0,0.00027864,7]
[356416681,1742429447125,-164.170015,0.00027864,7]
[356416682,1742429447135,-164.170015,0.00027864,7]
[356416683,1742429447144,-151.0,0.00027864,7]
[356416684,1742429447154,-279.912375,0.00027864,7]
[356416685,1742429447164,-151.0,0.00027864,7]
[356416686,1742429447173,-151.0,0.00027864,7]
[356416687,1742429447183,-151.0,0.00027864,7]
[356416688,1742429447192,-151.0,0.00027864,7]
[356416689,1742429447202,-151.0,0.00027864,7]
[356416690,1742429447211,-268.656668,0.00027864,7]
[356416691,1742429447221,-955.203588,0.00027864,7]
[356416692,1742429447230,-955.203588,0.00027864,7]
[356416693,1742429447240,-151.0,0.00027864,7]
[356416694,1742429447250,-151.0,0.00027864,7]
[356416695,1742429447259,-1409.6688885,0.00027866,2]
[356416696,1742429447272,-4014.5,0.00027866,2]
[356416697,1742429447294,-530.7778651,0.00027866,2]
[356416698,1742429447314,-60992.8162518,0.00027866,2]
[356416699,1742429447323,-158.65368329,0.00027869,2]
[356416700,1742429447333,-545.7082781,0.00027872,2]
[356416701,1742429447342,-500.0,0.00027872,2]
[356416702,1742429447352,-500.0,0.00027873,5]
[356416703,1742429447362,-164.49814814,0.00027873,5]
[356416704,1742429447371,-160.30312862,0.00027873,5]
[356416705,1742429447381,-503.52276014,0.00027873,5]
[356416706,1742429447390,-501.0441687,0.00027873,5]
[356416707,1742429447400,-503.16771637,0.00027873,5]
[356416708,1742429447409,-500.0,0.00027873,2]
[356416709,1742429447420,-160.49817676,0.00027873,5]
[356416710,1742429447430,-500.0,0.00027873,2]
[356416711,1742429447439,-500.0,0.00027873,2]
[356416712,1742429447449,-500.0,0.00027873,2]
[356416713,1742429447459,-500.0,0.00027873,2]
[356416714,1742429447468,-500.0,0.00027873,2]
[356416715,1742429447478,-250.02086856,0.00027873,2]
[356416717,1742429447487,-500.0,0.00027873,2]
[356416719,1742429447497,-500.0,0.00027873,2]
[356416721,1742429447506,-948.15634489,0.00027873,2]
[356416722,1742429447520,-118.84365511,0.00027873,2]
[356416723,1742429447530,-500.0,0.00027873,2]
[356416724,1742429447540,-727.32,0.00027873,2]
[356416725,1742429447549,-500.0,0.00027873,2]
[356416726,1742429447559,-500.0,0.00027873,2]
[356416727,1742429447568,-500.0,0.00027873,2]
[356416728,1742429447577,-500.0,0.00027873,2]
[356416729,1742429447586,-500.0,0.00027873,2]
[356416730,1742429447596,-500.0,0.00027873,2]
[356416731,1742429447607,-500.0,0.00027873,2]
[356416732,1742429447618,-733.99,0.00027873,2]
[356416733,1742429447628,-500.0,0.00027873,2]
[356416734,1742429447638,-560.99,0.00027873,2]
[356416735,1742429447648,-557.24,0.00027873,2]
[356416736,1742429447658,-2429.87,0.00027873,2]
[356416737,1742429447667,-1348.17,0.00027873,2]
[356416738,1742429447677,-392.85647262,0.00027873,2]
[356416739,1742429447687,-500.0,0.00027873,2]
[356416740,1742429447697,-500.0,0.00027873,2]
[356416741,1742429447709,-500.0,0.00027873,2]
[356416742,1742429447719,-500.0,0.00027873,2]
[356416743,1742429447729,-500.0,0.00027873,2]
[356416744,1742429447739,-500.0,0.00027873,2]
[356416745,1742429447749,-500.0,0.00027873,2]
[356416746,1742429447760,-500.0,0.00027873,2]
[356416747,1742429447769,-2000.0,0.00027873,30]
[356416748,1742429447780,-500.0,0.00027873,2]
[356416749,1742429447790,-610.35,0.00027873,2]
[356416750,1742429447801,-1458.76,0.00027873,2]
[356416751,1742429447811,-817.74,0.00027873,2]
[356416752,1742429447821,-500.0,0.00027873,2]
[356416753,1742429447832,-500.0,0.00027873,2]
[356416754,1742429447842,-573.64,0.00027873,2]
[356416755,1742429447853,-668.32,0.00027873,2]
[356416756,1742429447863,-1066.122063,0.00027873,2]
[356416757,1742429447873,-500.0,0.00027873,2]
[356416758,1742429447883,-500.0,0.00027873,2]
[356416759,1742429447892,-500.0,0.00027873,2]
[356416760,1742429447902,-741.24,0.00027873,2]
[356416761,1742429447916,-500.0,0.00027873,2]
[356416762,1742429447925,-884.76,0.00027873,2]
[356416763,1742429447935,-874.150544,0.00027873,2]
[356416764,1742429447944,-500.0,0.00027873,2]
[356416765,1742429447957,-500.0,0.00027873,2]
[356416766,1742429447967,-1398.42,0.00027873,2]
[356416767,1742429447976,-223.77732433,0.00027873,2]
[356416768,1742429447989,-611.11633916,0.00027873,2]
[356416769,1742429447999,-517.35,0.00027873,2]
[356416770,1742429448008,-815.99,0.00027873,2]
[356416771,1742429448018,-528.47,0.00027873,2]
[356416772,1742429448028,-151.0,0.00027873,7]
[356416773,1742429448038,-677.6,0.00027873,2]
[356416774,1742429448048,-663.32,0.00027873,2]
[356416775,1742429448058,-500.0,0.00027873,2]
[356416776,1742429448067,-500.0,0.00027873,2]
[356416777,1742429448078,-558.1,0.00027873,2]
[356416778,1742429448087,-592.4336601,0.00027873,2]
[356416779,1742429448098,-500.0,0.00027873,2]
[356416780,1742429448108,-500.0,0.00027873,2]
[356416781,1742429448118,-936.25,0.00027873,2]
[356416782,1742429448127,-500.0,0.00027873,2]
[356416783,1742429448138,-500.0,0.00027873,2]
[356416784,1742429448149,-679.48,0.00027873,2]
[356416785,1742429448158,-501.78901378,0.00027873,2]
[356416786,1742429448169,-257.25142185,0.00027873,2]
[356416787,1742429448180,-500.0,0.00027873,2]
[356416788,1742429448189,-164.170015,0.00027873,7]
[356416789,1742429448199,-500.0,0.00027873,2]
[356416790,1742429448208,-164.170015,0.00027873,7]
[356416791,1742429448219,-500.0,0.00027873,2]
[356416792,1742429448229,-167.05402835,0.00027873,2]
[356416793,1742429448238,-500.0,0.00027873,2]
[356416794,1742429448248,-868.8,0.00027873,2]
[356416795,1742429448258,-500.0,0.00027873,2]
[356416796,1742429448267,-1176.38,0.00027873,2]
[356416797,1742429448277,-785.4,0.00027873,2]
[356416798,1742429448289,-151.0,0.00027873,7]
[356416799,1742429448298,-821.33,0.00027873,2]
[356416800,1742429448307,-739.48,0.00027873,2]
[356416801,1742429448317,-238.711521,0.00027873,7]
[356416802,1742429448326,-500.0,0.00027873,2]
[356416803,1742429448335,-500.0,0.00027873,2]
[356416804,1742429448345,-546.35,0.00027873,2]
[356416805,1742429448356,-500.0,0.00027873,2]
[356416806,1742429448365,-697.24,0.00027873,2]
[356416807,1742429448375,-500.0,0.00027873,2]
[356416808,1742429448384,-722.61,0.00027873,2]
[356416809,1742429448394,-151.0,0.00027873,7]
[356416810,1742429448404,-227.80156231,0.00027873,2]
[356416811,1742429448414,-500.0,0.00027873,2]
[356416812,1742429448423,-500.0,0.00027873,2]
[356416813,1742429448433,-500.0,0.00027873,2]
[356416814,1742429448442,-500.0,0.00027873,2]
[356416815,1742429448451,-151.0,0.00027873,7]
[356416816,1742429448461,-3586.23,0.00027873,2]
[356416817,1742429448471,-519.75567393,0.00027873,2]
[356416818,1742429448481,-736.12,0.00027873,2]
[356416819,1742429448491,-1097.43,0.00027873,2]
[356416820,1742429448501,-1474.64,0.00027873,2]
[356416821,1742429448510,-500.0,0.00027873,2]
[356416822,1742429448520,-500.0,0.00027873,2]
[356416823,1742429448531,-1280.33,0.00027873,2]
[356416824,1742429448542,-151.0,0.00027873,7]
[356416825,1742429448555,-509.49405981,0.00027873,2]
[356416826,1742429448568,-862.32,0.00027873,2]
[356416827,1742429448579,-346.83138765,0.00027873,120]
[356416828,1742429448591,-783.16,0.00027873,2]
[356416829,1742429448603,-752.13,0.00027873,2]
[356416830,1742429448613,-151.0,0.00027873,7]
[356416831,1742429448623,-151.0,0.00027873,7]
[356416832,1742429448633,-1602.83,0.00027873,2]
[356416833,1742429448643,-613.42,0.00027873,2]
[356416834,1742429448653,-1019.87,0.00027873,2]
[356416835,1742429448663,-721.01,0.00027873,2]
[356416836,1742429448673,-500.0,0.00027873,2]
[356416837,1742429448683,-989.3,0.00027873,2]
[356416838,1742429448692,-747.45,0.00027873,2]
[356416839,1742429448701,-500.0,0.00027873,2]
[356416840,1742429448711,-500.0,0.00027873,2]
[356416841,1742429448722,-500.0,0.00027873,2]
[356416842,1742429448733,-500.0,0.00027873,2]
[356416843,1742429448743,-613.99,0.00027873,2]
[356416844,1742429448753,-955.203588,0.00027873,7]
[356416845,1742429448764,-955.203588,0.00027873,7]
[356416846,1742429448774,-698.32,0.00027873,2]
[356416847,1742429448784,-694.45,0.00027873,2]
[356416848,1742429448795,-500.0,0.00027873,2]
[356416849,1742429448804,-955.203588,0.00027873,7]
[356416850,1742429448814,-500.0,0.00027873,2]
[356416851,1742429448824,-955.203588,0.00027873,7]
[356416852,1742429448834,-500.0,0.00027873,2]
[356416853,1742429448844,-500.0,0.00027873,2]
[356416854,1742429448855,-500.0,0.00027873,2]
[356416855,1742429448865,-500.0,0.00027873,2]
[356416856,1742429448875,-1054.21,0.00027873,2]
[356416857,1742429448885,-500.0,0.00027873,2]
[356416858,1742429448895,-998.29,0.00027873,2]
[356416859,1742429448905,-500.0,0.00027873,2]
[356416860,1742429448923,-632.64,0.00027873,2]
[356416861,1742429448933,-1059.54,0.00027873,2]
[356416862,1742429448943,-500.0,0.00027873,2]
[356416863,1742429448954,-500.0,0.00027873,2]
[356416864,1742429448963,-1292.07,0.00027873,2]
[356416865,1742429448973,-233.189027,0.00027873,7]
[356416866,1742429448983,-726.3,0.00027873,2]
[356416867,1742429448994,-856.71,0.00027873,2]
[356416868,1742429449004,-500.0,0.00027873,2]
[356416869,1742429449015,-500.0,0.00027873,2]
[356416870,1742429449025,-585.41,0.00027873,2]
[356416871,1742429449035,-665.41,0.00027873,2]
[356416872,1742429449045,-500.0,0.00027873,2]
[356416873,1742429449056,-852.57,0.00027873,2]
[356416874,1742429449067,-877.66,0.00027873,2]
[356416875,1742429449077,-1145.44,0.00027873,2]
[356416876,1742429449086,-500.0,0.00027873,2]
[356416877,1742429449097,-500.0,0.00027873,2]
[356416878,1742429449111,-546.67,0.00027873,2]
[356416879,1742429449123,-527.46,0.00027873,2]
[356416880,1742429449133,-601.7,0.00027873,2]
[356416881,1742429449143,-642.55,0.00027873,2]
[356416882,1742429449154,-1444.41,0.00027873,2]
[356416883,1742429449164,-594.29,0.00027873,2]
[356416884,1742429449175,-561.98,0.00027873,2]
[356416885,1742429449185,-853.47,0.00027873,2]
[356416886,1742429449195,-151.0,0.00027873,7]
[356416887,1742429449205,-151.0,0.00027873,7]
[356416888,1742429449215,-812.3,0.00027873,2]
[356416889,1742429449225,-511.43,0.00027873,2]
[356416891,1742429449235,-718.36,0.00027873,2]
[356416892,1742429449244,-500.0,0.00027873,2]
[356416893,1742429449254,-500.0,0.00027873,2]
[356416894,1742429449264,-500.0,0.00027873,2]
[356416895,1742429449275,-500.0,0.00027873,2]
[356416896,1742429449469,-633.27,0.00027873,2]
[356416897,1742429449479,-500.0,0.00027873,2]
[356416898,1742429449488,-1076.81,0.00027873,2]
[356416899,1742429449498,-531.66,0.00027873,2]
[356416900,1742429449507,-500.0,0.00027873,2]
[356416901,1742429449517,-920.66,0.00027873,2]
[356416902,1742429449527,-500.0,0.00027873,2]
[356416903,1742429449536,-500.0,0.00027873,2]
[356416904,1742429449546,-500.0,0.00027873,2]
[356416905,1742429449556,-225.45910695,0.00027873,2]
[356416906,1742429449566,-511.28,0.00027873,2]
[356416907,1742429449576,-500.0,0.00027873,2]
[356416908,1742429449586,-500.0,0.00027873,2]
[356416909,1742429449596,-514.3,0.00027873,2]
[356416910,1742429449608,-786.12,0.00027873,2]
[356416911,1742429449617,-555.8,0.00027873,2]
[356416912,1742429449627,-500.0,0.00027873,2]
[356416913,1742429449637,-500.0,0.00027873,2]
[356416914,1742429449647,-916.67,0.00027873,2]
[356416915,1742429449657,-500.0,0.00027873,2]
[356416916,1742429449667,-500.0,0.00027873,2]
[356416917,1742429449676,-606.34,0.00027873,2]
[356416918,1742429449686,-1423.16,0.00027873,2]
[356416919,1742429449697,-514.51,0.00027873,2]
[356416920,1742429449707,-513.17242663,0.00027873,2]
[356416921,1742429449716,-500.0,0.00027873,2]
[356416922,1742429449726,-527.4,0.00027873,2]
[356416923,1742429449737,-771.71,0.00027873,2]
[356416924,1742429449746,-509.41932419,0.00027873,2]
[356416925,1742429449756,-1968.02,0.00027873,2]
[356416926,1742429449766,-890.3,0.00027873,2]
[356416927,1742429449776,-972.67,0.00027873,2]
[356416928,1742429449786,-1255.95,0.00027873,2]
[356416929,1742429449796,-500.0,0.00027873,2]
[356416930,1742429449806,-747.03,0.00027873,2]
[356416931,1742429449815,-500.0,0.00027873,2]
[356416932,1742429449825,-1355.2,0.00027873,2]
[356416933,1742429449835,-565.73,0.00027873,2]
[356416934,1742429449844,-514.95,0.00027873,2]
[356416935,1742429449855,-1417.74,0.00027873,2]
[356416936,1742429449865,-500.0,0.00027873,2]
[356416937,1742429449875,-1664.63,0.00027873,2]
[356416938,1742429449884,-500.0,0.00027873,2]
[356416939,1742429449894,-502.03712296,0.00027873,2]
[356416940,1742429449904,-1385.47,0.00027873,2]
[356416941,1742429449915,-1032.51,0.00027873,2]
[356416942,1742429449926,-636.34,0.00027873,2]
[356416943,1742429449935,-1005.05,0.00027873,2]
[356416944,1742429449945,-500.0,0.00027874,2]
[356416945,1742429449956,-1175.8,0.00027874,2]
[356416946,1742429449965,-500.0,0.00027874,2]
[356416947,1742429449975,-500.0,0.00027874,2]
[356416948,1742429449985,-500.0,0.00027874,2]
[356416949,1742429449995,-500.0,0.00027874,2]
[356416950,1742429450006,-500.0,0.00027874,2]
[356416951,1742429450016,-531.91,0.00027874,2]
[356416952,1742429450025,-500.0,0.00027874,2]
[356416953,1742429450034,-500.0,0.00027874,2]
[356416954,1742429450044,-589.81,0.00027874,2]
[356416955,1742429450053,-500.0,0.00027874,2]
[356416956,1742429450062,-500.0,0.00027874,2]
[356416957,1742429450071,-779.96,0.00027874,2]
[356416958,1742429450081,-876.08,0.00027874,30]
[356416959,1742429450090,-500.0,0.00027874,2]
[356416960,1742429450100,-500.0,0.00027874,2]
[356416961,1742429450111,-509.70437633,0.00027874,2]
[356416962,1742429450120,-500.0,0.00027874,2]
[356416963,1742429450129,-606.94,0.00027874,2]
[356416964,1742429450139,-500.0,0.00027874,2]
[356416965,1742429450148,-500.0,0.00027874,2]
[356416966,1742429450158,-500.0,0.00027874,2]
[356416967,1742429450167,-500.0,0.00027874,2]
[356416968,1742429450176,-500.0,0.00027874,2]
[356416969,1742429450186,-500.0,0.00027874,2]
[356416970,1742429450196,-500.0,0.00027874,2]
[356416971,1742429450206,-500.0,0.00027874,2]